fUST/lending_fUST_20250505
["ID","MTS","AMOUNT","RATE_DAILY","PERIOD"]
[359912673,1746415846711,-400.0,0.00035888,14]
[359912674,1746415846720,-408.6247741,0.00035888,14]
[359912675,1746415846729,-403.2319838,0.00035888,14]
[359912676,1746415846739,-400.0,0.00035888,14]
[359912677,1746415846748,-400.0,0.00035888,14]
[359912678,1746415846757,-400.0,0.00035888,14]
[359912679,1746415846767,-500.0,0.00035888,14]
[359912680,1746415846776,-400.0,0.00035888,14]
[359912681,1746415846786,-218.74,0.00035888,14]
[359912682,1746415846795,-400.0,0.00035888,14]
[359912683,1746415846806,-400.0,0.00035888,14]
[359912684,1746415846815,-400.0,0.00035888,14]
[359912685,1746415846825,-400.0,0.00035888,14]
[359912686,1746415846834,-344.83704282,0.00035888,14]
[359912687,1746415846844,-302.33117221,0.00035888,14]
[359912688,1746415846853,-400.0,0.00035888,14]
[359912689,1746415846862,-400.0,0.00035888,14]
[359912690,1746415846872,-400.0,0.00035888,14]
[359912691,1746415846881,-587.1444218,0.00035889,14]
[359912693,1746415846891,-400.0,0.0003589,14]
[359912695,1746415846900,-400.0,0.0003589,14]
[359912696,1746415846909,-405.00889075,0.0003589,14]
[359912697,1746415846919,-479.3,0.0003589,14]
[359912698,1746415846928,-400.0,0.0003589,14]
[359912699,1746415846938,-470.69,0.0003589,14]
[359912700,1746415846948,-672.06,0.0003589,14]
[359912701,1746415846958,-603.39,0.0003589,14]
[359912702,1746415846968,-266.21,0.0003589,14]
[359912703,1746415846977,-400.0,0.0003589,14]
[359912704,1746415846987,-400.0,0.0003589,14]
[359912705,1746415846996,-400.0,0.0003589,14]
[359912707,1746415847005,-186.19,0.0003589,14]
[359912709,1746415847015,-272.77,0.0003589,14]
[359912711,1746415847024,-400.0,0.0003589,14]
[359912713,1746415847033,-49.71566735,0.0003589,14]
[359912715,1746415847048,-350.28433265,0.0003589,14]
[359912717,1746415847058,-209.73,0.0003589,14]
[359912718,1746415847067,-240.77,0.0003589,14]
[359912719,1746415847076,-400.0,0.0003589,14]
[359912720,1746415847086,-400.0,0.0003589,14]
[359912721,1746415847096,-400.0,0.0003589,14]
[359912722,1746415847106,-403.61350485,0.0003589,14]
[359912723,1746415847115,-400.0,0.0003589,14]
[359912724,1746415847125,-400.0,0.0003589,14]
[359912725,1746415847134,-326.15028122,0.0003589,14]
[359912726,1746415847143,-400.0,0.0003589,14]
[359912727,1746415847152,-400.0,0.0003589,14]
[359912728,1746415847161,-400.0,0.0003589,14]
[359912729,1746415847171,-327.22,0.0003589,14]
[359912730,1746415847180,-151.35,0.0003589,14]
[359912731,1746415847190,-400.0,0.0003589,14]
[359912732,1746415847199,-313.84,0.0003589,14]
[359912733,1746415847209,-400.0,0.0003589,14]
[359912734,1746415847219,-403.1,0.0003589,14]
[359912735,1746415847227,-400.0,0.0003589,14]
[359912736,1746415847237,-400.0,0.0003589,14]
[359912737,1746415847246,-400.0,0.0003589,14]
[359912738,1746415847257,-400.0,0.0003589,14]
[359912739,1746415847266,-400.0,0.0003589,14]
[359912740,1746415847275,-544.67,0.0003589,14]
[359912741,1746415847285,-323.47,0.0003589,14]
[359912742,1746415847294,-156.18912129,0.0003589,14]
[359912743,1746415847314,-243.81087871,0.0003589,14]
[359912744,1746415847323,-400.0,0.0003589,14]
[359912745,1746415847332,-400.0,0.0003589,14]
[359912746,1746415847341,-400.0,0.0003589,14]
[359912747,1746415847351,-400.0,0.0003589,14]
[359912748,1746415847360,-400.0,0.0003589,14]
[359912749,1746415847370,-400.0,0.0003589,14]
[359912750,1746415847379,-400.0,0.0003589,2]
[359912751,1746415847389,-400.0,0.0003589,14]
[359912752,1746415847398,-400.0,0.0003589,14]
[359912753,1746415847408,-400.0,0.0003589,14]
[359912754,1746415847417,-400.0,0.0003589,14]
[359912755,1746415847427,-400.0,0.0003589,14]
[359912756,1746415847437,-128.05641562,0.0003589,14]
[359912757,1746415847448,-121.51358438,0.0003589,14]
[359912758,1746415847457,-400.0,0.0003589,14]
[359912759,1746415847466,-400.0,0.0003589,14]
[359912760,1746415847476,-537.34,0.0003589,14]
[359912761,1746415847485,-400.0,0.0003589,14]
[359912762,1746415847495,-502.78188666,0.0003589,14]
[359912763,1746415847504,-400.0,0.0003589,14]
[359912764,1746415847513,-219.87,0.0003589,14]
[359912765,1746415847523,-400.0,0.0003589,14]
[359912766,1746415847532,-400.0,0.0003589,14]
[359912767,1746415847542,-400.0,0.0003589,14]
[359912768,1746415847551,-56.72097902,0.0003589,14]
[359912769,1746415847563,-112.40902098,0.0003589,14]
[359912770,1746415847573,-300.0,0.0003589,14]
[359912771,1746415847582,-127.83059063,0.0003589,14]
[359913108,1746416739161,-296.414646,0.0003369,2]
[359913109,1746416739183,-361.1882588,0.0003369,2]
[359913110,1746416739204,-150.0,0.0003379,2]
[359913111,1746416739225,-977.46257209,0.00034051,3]
[359913112,1746416756104,-222.53742791,0.00034051,3]
[359913113,1746416756126,-68.59745674,0.00034052,7]
[359913114,1746416832103,-400.0,0.00034051,2]
[359913115,1746416832124,-327.70417143,0.00034052,7]
[359913116,1746416832154,-582.41771766,0.00034052,7]
[359913117,1746416832182,-94.34395463,0.00034052,7]
[359913118,1746416839134,-240.79217252,0.00033952,2]
[359913119,1746416839166,-405.65604537,0.00034052,7]
[359913120,1746416839193,-500.0,0.00034052,7]
[359913121,1746416839215,-495.50299611,0.00034052,7]
[359913122,1746416839241,-584.46044882,0.00034052,7]
[359913123,1746416839266,-444.70580919,0.00034052,7]
[359913124,1746416839287,-3096.42027706,0.00034053,2]
[359913125,1746416840087,-19098.16912965,0.00034053,2]
[359913126,1746416948125,-341.598945,0.00027397,2]
[359913127,1746416950162,-341.598945,0.00033165,2]
[359913128,1746416950183,-948.34276549,0.00034053,2]
[359913129,1746416953724,240.79217252,0.00033065,2]
[359913130,1746416955549,616.33729166,0.00033411,2]
[359913131,1746416955890,616.33729166,0.00033529,2]
[359913132,1746416956216,616.33729166,0.0003377,2]
[359913133,1746416956526,616.33729166,0.00034232,2]
[359913134,1746416956839,20.773926,0.00034436,2]
[359913135,1746416956861,595.56336566,0.00034436,2]
[359913136,1746416957143,616.33729166,0.00034535,2]
[359913137,1746416957445,249.51955295,0.00034886,2]
[359913138,1746416959145,-366.81773871,0.00034886,2]
[359913140,1746417004195,1452.77529224,0.00035005,120]
[359913151,1746417031932,-568.88,0.00035005,120]
[359913152,1746417031985,-478.298,0.00035005,120]
[359913153,1746417032039,-7.04030257,0.00035005,120]
[359913155,1746417032048,-6160.70579154,0.00035106,7]
[359913157,1746417032057,-335.0,0.00035164,2]
[359913159,1746417032066,-616.33729166,0.00035165,2]
[359913160,1746417032076,-167.99229213,0.00035516,2]
[359913161,1746417032085,-616.33729166,0.00035552,2]
[359913162,1746417032094,-412.42963831,0.00035616,14]
[359913163,1746417032103,-400.0,0.00035616,14]
[359913164,1746417032113,-400.0,0.00035616,14]
[359913165,1746417032122,-265.39291692,0.00035616,14]
[359913166,1746417032131,-400.0,0.00035616,14]
[359913167,1746417032140,-354.03891521,0.00035616,14]
[359913168,1746417032152,-45.96108479,0.00035616,14]
[359913169,1746417032161,-400.0,0.00035616,14]
[359913170,1746417032170,-404.00881044,0.00035616,14]
[359913171,1746417032179,-400.0,0.00035616,14]
[359913172,1746417032188,-400.0,0.00035616,14]
[359913173,1746417032196,-400.0,0.00035616,14]
[359913174,1746417032203,-208.3757028,0.00035616,7]
[359913175,1746417032211,-238.27617223,0.00035616,14]
[359913176,1746417032219,-473.31566127,0.00035616,14]
[359913177,1746417032227,-400.0,0.00035616,14]
[359913178,1746417032235,-400.0,0.00035616,14]
[359913179,1746417032244,-400.0,0.00035616,14]
[359913180,1746417032375,-400.0,0.00035616,14]
[359913181,1746417032391,-500.0,0.00035616,14]
[359913182,1746417032400,-400.0,0.00035616,14]
[359913183,1746417032410,-400.0,0.00035616,14]
[359913184,1746417032419,-400.0,0.00035616,14]
[359913185,1746417032428,-400.0,0.00035616,14]
[359913186,1746417032437,-400.0,0.00035616,14]
[359913187,1746417032445,-400.0,0.00035616,14]
[359913188,1746417032455,-400.0,0.00035616,14]
[359913189,1746417032464,-400.0,0.00035616,14]
[359913190,1746417032473,-400.0,0.00035616,14]
[359913191,1746417032482,-400.0,0.00035616,14]
[359913192,1746417032491,-400.0,0.00035616,14]
[359913193,1746417032500,-400.0,0.00035616,14]
[359913194,1746417032509,-500.0,0.00035616,14]
[359913195,1746417032518,-528.99458051,0.00035616,14]
[359913196,1746417032527,-400.0,0.00035616,14]
[359913197,1746417032545,-400.0,0.00035616,14]
[359913198,1746417032556,-400.0,0.00035616,14]
[359913199,1746417032565,-400.0,0.00035616,14]
[359913200,1746417032574,-400.0,0.00035616,14]
[359913201,1746417032583,-400.0,0.00035616,14]
[359913202,1746417032592,-400.0,0.00035616,14]
[359913203,1746417032603,-1335.71,0.00035616,14]
[359913204,1746417032613,-504.13453185,0.00035616,14]
[359913205,1746417032623,-268.06253677,0.00035616,14]
[359913206,1746417032633,-503.74295545,0.00035616,14]
[359913207,1746417032642,-400.0,0.00035616,14]
[359913208,1746417032652,-418.07548361,0.00035616,14]
[359913209,1746417032662,-400.0,0.00035616,14]
[359913210,1746417032672,-400.0,0.00035616,14]
[359913211,1746417032682,-400.0,0.00035616,14]
[359913212,1746417032697,-400.0,0.00035616,14]
[359913213,1746417032707,-400.0,0.00035616,14]
[359913214,1746417032716,-400.0,0.00035616,14]
[359913215,1746417032726,-400.0,0.00035616,14]
[359913216,1746417032736,-400.0,0.00035616,14]
[359913217,1746417032745,-400.0,0.00035616,14]
[359913218,1746417032755,-616.05,0.00035616,14]
[359913219,1746417032765,-400.0,0.00035616,14]
[359913220,1746417032775,-400.0,0.00035616,14]
[359913221,1746417032785,-400.0,0.00035616,14]
[359913222,1746417032795,-400.0,0.00035616,14]
[359913223,1746417032805,-400.0,0.00035616,14]
[359913224,1746417032814,-500.0,0.00035616,14]
[359913225,1746417032824,-500.0,0.00035616,14]
[359913226,1746417032833,-630.62,0.00035616,14]
[359913227,1746417032843,-400.0,0.00035616,14]
[359913228,1746417032852,-400.0,0.00035616,14]
[359913229,1746417032862,-400.0,0.00035616,14]
[359913230,1746417032871,-401.54175558,0.00035616,14]
[359913231,1746417032881,-337.61114804,0.00035616,14]
[359913232,1746417032890,-400.0,0.00035616,14]
[359913233,1746417032900,-400.0,0.00035616,14]
[359913234,1746417032909,-400.0,0.00035616,14]
[359913235,1746417032919,-500.0,0.00035616,14]
[359913236,1746417032928,-377.79225976,0.00035616,14]
[359913237,1746417032938,-361.73601495,0.00035616,14]
[359913238,1746417032950,-401.72,0.00035616,14]
[359913239,1746417032959,-400.0,0.00035616,14]
[359913240,1746417032969,-422.31206175,0.00035616,14]
[359913241,1746417032978,-400.0,0.00035616,14]
[359913242,1746417032988,-483.74,0.00035616,14]
[359913243,1746417032998,-400.0,0.00035616,14]
[359913244,1746417033008,-400.0,0.00035616,14]
[359913245,1746417033018,-400.0,0.00035616,14]
[359913246,1746417033027,-400.0,0.00035616,14]
[359913247,1746417033037,-400.0,0.00035616,14]
[359913248,1746417033047,-379.0,0.00035616,14]
[359913249,1746417033056,-400.0,0.00035616,12]
[359913250,1746417033066,-400.0,0.00035616,14]
[359913251,1746417033077,-400.0,0.00035616,14]
[359913252,1746417033086,-400.0,0.00035616,14]
[359913253,1746417033096,-506.70725886,0.00035616,14]
[359913254,1746417033109,-500.0,0.00035616,14]
[359913255,1746417033118,-408.75811911,0.00035616,14]
[359913256,1746417033128,-400.0,0.00035616,14]
[359913257,1746417033137,-400.0,0.00035616,14]
[359913258,1746417033147,-400.0,0.00035616,14]
[359913259,1746417033157,-400.0,0.00035616,14]
[359913260,1746417033167,-400.0,0.00035616,14]
[359913261,1746417033177,-400.0,0.00035616,14]
[359913262,1746417033186,-400.0,0.00035616,14]
[359913263,1746417033196,-400.0,0.00035616,14]
[359913264,1746417033206,-339.39621513,0.00035616,14]
[359913265,1746417033215,-400.0,0.00035616,14]
[359913266,1746417033225,-400.0,0.00035616,14]
[359913267,1746417033235,-400.0,0.00035616,14]
[359913268,1746417033245,-400.0,0.00035616,14]
[359913269,1746417033255,-400.0,0.00035616,14]
[359913270,1746417033265,-400.0,0.00035616,14]
[359913271,1746417033276,-400.0,0.00035616,14]
[359913272,1746417033286,-400.0,0.00035616,14]
[359913273,1746417033296,-401.65631602,0.00035616,14]
[359913274,1746417033306,-400.0,0.00035616,14]
[359913275,1746417033315,-304.06548604,0.00035616,14]
[359913276,1746417033325,-401.85304115,0.00035616,14]
[359913277,1746417033335,-400.0,0.00035616,14]
[359913278,1746417033344,-400.0,0.00035616,14]
[359913279,1746417033354,-505.53939858,0.00035616,14]
[359913280,1746417033363,-400.0,0.00035616,14]
[359913281,1746417033372,-400.0,0.00035616,14]
[359913282,1746417033382,-400.0,0.00035616,14]
[359913283,1746417033391,-502.90133346,0.00035616,14]
[359913284,1746417033401,-400.0,0.00035616,14]
[359913285,1746417033411,-400.0,0.00035616,14]
[359913286,1746417033420,-400.0,0.00035616,14]
[359913287,1746417033430,-400.0,0.00035616,14]
[359913288,1746417033439,-400.0,0.00035616,14]
[359913289,1746417033449,-411.83,0.00035616,14]
[359913290,1746417033459,-400.0,0.00035616,14]
[359913291,1746417033468,-400.0,0.00035616,14]
[359913292,1746417033477,-406.99918817,0.00035616,14]
[359913293,1746417033487,-401.55962138,0.00035616,14]
[359913294,1746417033496,-400.0,0.00035616,14]
[359913295,1746417033506,-400.0,0.00035616,14]
[359913296,1746417033516,-277.7000512,0.00035616,14]
[359913297,1746417033526,-505.08492644,0.00035616,14]
[359913298,1746417033535,-400.0,0.00035616,14]
[359913299,1746417033545,-400.0,0.00035616,14]
[359913300,1746417033555,-400.0,0.00035616,14]
[359913301,1746417033565,-400.0,0.00035616,14]
[359913302,1746417033575,-400.0,0.00035616,14]
[359913303,1746417033585,-400.0,0.00035616,14]
[359913304,1746417033594,-487.8,0.00035616,14]
[359913305,1746417033604,-400.0,0.00035616,14]
[359913306,1746417033614,-400.0,0.00035616,14]
[359913307,1746417033624,-421.05503034,0.00035616,14]
[359913308,1746417033634,-217.02008389,0.00035616,14]
[359913309,1746417033645,-400.0,0.00035616,14]
[359913310,1746417033655,-232.50953888,0.00035616,14]
[359913311,1746417033665,-400.0,0.00035616,14]
[359913312,1746417033675,-400.0,0.00035616,14]
[359913313,1746417033685,-398.45353196,0.00035616,14]
[359913314,1746417033694,-400.0,0.00035616,14]
[359913315,1746417033704,-400.0,0.00035616,14]
[359913316,1746417033714,-400.0,0.00035616,14]
[359913317,1746417033724,-400.0,0.00035616,14]
[359913318,1746417033734,-293.23,0.00035616,14]
[359913319,1746417033744,-285.84639266,0.00035616,14]
[359913320,1746417033753,-400.0,0.00035616,14]
[359913321,1746417033763,-707.93,0.00035616,14]
[359913322,1746417033773,-568.84,0.00035616,14]
[359913323,1746417033783,-400.0,0.00035616,14]
[359913324,1746417033793,-501.26330862,0.00035616,14]
[359913325,1746417033803,-413.72294511,0.00035616,14]
[359913326,1746417033813,-401.90138165,0.00035616,14]
[359913327,1746417033822,-400.0,0.00035616,14]
[359913328,1746417033832,-400.0,0.00035616,14]
[359913329,1746417033842,-209.61716352,0.00035616,14]
[359913330,1746417033852,-499.29,0.00035616,14]
[359913331,1746417033862,-400.0,0.00035616,14]
[359913332,1746417033872,-400.0,0.00035616,14]
[359913333,1746417033883,-400.0,0.00035616,14]
[359913334,1746417033892,-400.0,0.00035616,14]
[359913335,1746417033902,-400.0,0.00035616,14]
[359913336,1746417033912,-400.0,0.00035616,14]
[359913337,1746417033922,-548.39,0.00035616,14]
[359913338,1746417033931,-400.0,0.00035616,14]
[359913339,1746417033941,-404.39173352,0.00035616,14]
[359913340,1746417033954,-400.0,0.00035616,14]
[359913341,1746417033963,-400.0,0.00035616,14]
[359913342,1746417033973,-400.0,0.00035616,14]
[359913343,1746417033983,-400.0,0.00035616,14]
[359913344,1746417033992,-400.0,0.00035616,14]
[359913345,1746417034002,-362.86,0.00035616,14]
[359913346,1746417034011,-488.11,0.00035616,14]
[359913347,1746417034021,-400.0,0.00035616,14]
[359913348,1746417034032,-400.0,0.00035616,14]
[359913349,1746417034041,-400.0,0.00035616,14]
[359913350,1746417034050,-400.0,0.00035616,14]
[359913351,1746417034060,-400.0,0.00035616,14]
[359913352,1746417034070,-400.0,0.00035616,14]
[359913353,1746417034079,-400.0,0.00035616,14]
[359913354,1746417034090,-217.23608074,0.00035616,14]
[359913355,1746417034100,-400.0,0.00035616,14]
[359913356,1746417034110,-400.0,0.00035616,14]
[359913357,1746417034119,-400.0,0.00035616,14]
[359913358,1746417034128,-402.78489786,0.00035616,14]
[359913359,1746417034138,-400.0,0.00035616,14]
[359913360,1746417034147,-400.0,0.00035616,14]
[359913361,1746417034156,-400.0,0.00035616,14]
[359913362,1746417034166,-438.46,0.00035616,14]
[359913363,1746417034175,-400.0,0.00035616,14]
[359913364,1746417034185,-400.0,0.00035616,14]
[359913365,1746417034195,-400.0,0.00035616,14]
[359913366,1746417034205,-400.0,0.00035616,14]
[359913367,1746417034214,-400.0,0.00035616,14]
[359913368,1746417034224,-400.0,0.00035616,14]
[359913369,1746417034234,-400.0,0.00035616,14]
[359913370,1746417034243,-400.0,0.00035616,14]
[359913371,1746417034253,-400.0,0.00035616,14]
[359913372,1746417034262,-400.0,0.00035616,14]
[359913373,1746417034271,-400.0,0.00035616,14]
[359913374,1746417034281,-400.0,0.00035616,14]
[359913375,1746417034290,-400.0,0.00035616,14]
[359913376,1746417034299,-400.0,0.00035616,14]
[359913377,1746417034309,-400.0,0.00035616,14]
[359913378,1746417034318,-400.0,0.00035616,14]
[359913379,1746417034327,-400.0,0.00035616,14]
[359913380,1746417034336,-400.0,0.00035616,14]
[359913381,1746417034346,-220.31835082,0.00035616,14]
[359913382,1746417034356,-400.0,0.00035616,14]
[359913383,1746417034365,-477.16,0.00035616,2]
[359913384,1746417034375,-307.33925443,0.00035616,14]
[359913385,1746417034384,-400.0,0.00035616,14]
[359913386,1746417034394,-504.3,0.00035616,14]
[359913387,1746417034403,-400.0,0.00035616,14]
[359913388,1746417034413,-405.61162556,0.00035616,14]
[359913389,1746417034422,-416.44872991,0.00035616,14]
[359913390,1746417034432,-412.78807844,0.00035616,14]
[359913391,1746417034442,-400.0,0.00035616,14]
[359913392,1746417034452,-500.0,0.00035673,2]
[359913393,1746417034462,-500.0,0.00035673,5]
[359913394,1746417034471,-500.0,0.00035673,5]
[359913395,1746417034481,-3919.36413044,0.00035735,3]
[359913396,1746417034490,-160.0,0.00035779,2]
[359913397,1746417034500,-616.33729172,0.00035823,2]
[359913398,1746417034509,-64272.1068034,0.0003587,2]
[359913399,1746417034525,-252359.51521903,0.0003587,2]
[359913400,1746417034538,-19857.01909897,0.0003587,2]
[359913412,1746417037925,-400.0,0.00035616,14]
[359913413,1746417037935,-400.0,0.00035616,14]
[359913414,1746417037947,-400.0,0.00035616,14]
[359913415,1746417037957,-2290.23470855,0.0003587,2]
[359913416,1746417037977,-113789.24606505,0.0003587,2]
[359913417,1746417037986,-156051.40459438,0.0003587,2]
[359913422,1746417040743,247.3410176,0.00033656,2]
[359913434,1746417046154,-400.0,0.00035616,14]
[359913435,1746417046164,-400.0,0.00035616,14]
[359913436,1746417046175,-400.0,0.00035616,14]
[359913437,1746417046186,-311.3516346,0.00035616,14]
[359913438,1746417046195,-14281.2966384,0.0003587,2]
[359913441,1746417130407,1071.64412076,0.00034263,2]
[359913443,1746417234389,-772.0,0.00025,2]
[359913465,1746418033141,-15.0,0.00025,2]
[359913466,1746418033162,-307.43905,0.00027397,2]
[359913467,1746418033182,-240.79217252,0.00028411,2]
[359913468,1746418033202,-72.20216059,0.00028511,2]
[359913469,1746418034114,-325.62885149,0.00028511,2]
[359913470,1746418036213,-347.58858151,0.00028511,2]
[359913471,1746418036236,-177.661528,0.00031555,2]
[359913472,1746418036256,-323.5564405,0.00031831,8]
[359913473,1746418036275,-1000.0,0.00032,15]
[359913474,1746418036294,-157.0,0.00032756,3]
[359913475,1746418036313,-400.0,0.00032756,2]
[359913476,1746418036332,-5352.11023834,0.00032757,2]
[359913477,1746418036361,-500.0,0.00032924,7]
[359913478,1746418036389,-463.2379293,0.00032924,7]
[359913479,1746418036415,-32.68952628,0.00032924,7]
[359913480,1746418037097,-234.32271434,0.00032924,7]
[359913481,1746418037117,-1123.01916083,0.00032925,2]
[359913482,1746418051105,-1163.45756315,0.000329,27]
[359913483,1746418051126,-7154.02543109,0.00032925,2]
[359913485,1746418159083,-187.0,0.00032924,2]
[359913486,1746418159106,-16622.95540808,0.00032925,2]
[359913487,1746418159127,-262.413893,0.00033025,2]
[359913488,1746418159149,-307.43905,0.00033165,2]
[359913489,1746418159172,-1163.4575631,0.00033176,28]
[359913490,1746418159194,-1163.4575631,0.00033452,28]
[359913491,1746418159216,-1163.4575631,0.00033728,29]
[359913492,1746418159236,-1094.11922023,0.00033994,2]
[359913493,1746418159258,-1163.4575631,0.00034003,30]
[359913494,1746418159279,-874.06077263,0.00034263,2]
[359913495,1746418161128,320.0,0.00032,120]
[359913496,1746418165343,-1094.70376021,0.00034263,2]
[359913497,1746418165368,-1163.4575631,0.00034279,30]
[359913498,1746418165391,-1163.4575631,0.00034555,31]
[359913499,1746418165412,-635.77558476,0.00034579,2]
[359913500,1746418165432,-826.96183452,0.00034783,2]
[359913501,1746418165455,-1163.4575631,0.00034831,31]
[359913502,1746418165476,-635.77558476,0.00034953,2]
[359913503,1746418165497,-500.0,0.00035,15]
[359913526,1746418232181,-250.0,0.00035287,2]
[359913527,1746418232191,-1306.01926354,0.00035516,2]
[359913528,1746418232201,-167.99229206,0.00035516,2]
[359913529,1746418232210,-635.77558476,0.00035532,2]
[359913530,1746418232220,-7784.71479784,0.00035606,3]
[359913532,1746418232229,-312.73,0.00035606,3]
[359913534,1746418232238,-160.0,0.00035615,2]
[359913536,1746418232247,-402.06983681,0.00035616,14]
[359913540,1746418232390,-513.22078395,0.00035616,14]
[359913541,1746418232400,-401.237211,0.00035616,14]
[359913542,1746418232409,-400.0,0.00035616,14]
[359913543,1746418232419,-400.0,0.00035616,14]
[359913544,1746418232428,-400.0,0.00035616,14]
[359913545,1746418232437,-400.0,0.00035616,14]
[359913546,1746418232446,-400.0,0.00035616,14]
[359913547,1746418232456,-200.69905506,0.00035616,14]
[359913548,1746418232465,-400.0,0.00035616,14]
[359913549,1746418232474,-272.03593548,0.00035616,14]
[359913550,1746418232483,-400.0,0.00035616,14]
[359913551,1746418232492,-212.82684908,0.00035616,14]
[359913552,1746418232502,-400.0,0.00035616,14]
[359913553,1746418232511,-400.0,0.00035616,14]
[359913554,1746418232521,-400.0,0.00035616,14]
[359913555,1746418232530,-400.0,0.00035616,14]
[359913556,1746418232542,-400.0,0.00035616,14]
[359913557,1746418232551,-400.0,0.00035616,14]
[359913558,1746418232561,-400.0,0.00035616,14]
[359913559,1746418232569,-400.64269924,0.00035616,14]
[359913560,1746418232579,-262.31300624,0.00035616,14]
[359913561,1746418232587,-400.0,0.00035616,14]
[359913562,1746418232596,-400.0,0.00035616,14]
[359913563,1746418232606,-311.57551601,0.00035616,14]
[359913564,1746418232701,-88.42448399,0.00035616,14]
[359913565,1746418232717,-400.0,0.00035616,14]
[359913566,1746418232728,-415.96273468,0.00035616,14]
[359913567,1746418232738,-400.0,0.00035616,14]
[359913568,1746418232748,-400.0,0.00035616,14]
[359913569,1746418232757,-424.84,0.00035616,14]
[359913570,1746418232766,-400.0,0.00035616,14]
[359913571,1746418232776,-400.0,0.00035616,14]
[359913572,1746418232785,-400.0,0.00035616,14]
[359913573,1746418232794,-400.0,0.00035616,14]
[359913574,1746418232803,-150.0,0.00035616,14]
[359913575,1746418232813,-410.06604728,0.00035616,14]
[359913576,1746418232822,-400.0,0.00035616,14]
[359913577,1746418232831,-199.67982235,0.00035616,14]
[359913578,1746418232841,-400.0,0.00035616,14]
[359913579,1746418232853,-400.0,0.00035616,14]
[359913580,1746418232862,-400.0,0.00035616,14]
[359913581,1746418232871,-400.0,0.00035616,2]
[359913582,1746418232883,-400.0,0.00035616,14]
[359913583,1746418232892,-536.94338367,0.00035616,14]
[359913584,1746418232902,-400.0,0.00035616,14]
[359913585,1746418232912,-400.0,0.00035616,14]
[359913586,1746418232922,-400.0,0.00035616,14]
[359913587,1746418232931,-400.0,0.00035616,14]
[359913588,1746418232941,-400.0,0.00035616,14]
[359913589,1746418232950,-400.0,0.00035616,14]
[359913590,1746418232959,-400.0,0.00035616,14]
[359913591,1746418232968,-400.0,0.00035616,14]
[359913592,1746418232978,-400.0,0.00035616,14]
[359913593,1746418232987,-400.0,0.00035616,14]
[359913594,1746418232997,-400.0,0.00035616,14]
[359913595,1746418233006,-400.0,0.00035616,14]
[359913596,1746418233015,-400.0,0.00035616,14]
[359913597,1746418233025,-1280.06,0.00035616,14]
[359913598,1746418233034,-400.0,0.00035616,14]
[359913599,1746418233044,-400.0,0.00035616,14]
[359913600,1746418233054,-400.0,0.00035616,14]
[359913601,1746418233064,-400.0,0.00035616,14]
[359913602,1746418233074,-400.0,0.00035616,14]
[359913603,1746418233083,-500.0,0.00035616,14]
[359913604,1746418233092,-400.0,0.00035616,14]
[359913605,1746418233102,-400.0,0.00035616,14]
[359913606,1746418233113,-400.0,0.00035616,14]
[359913607,1746418233124,-400.0,0.00035616,14]
[359913608,1746418233133,-400.0,0.00035616,14]
[359913609,1746418233143,-400.0,0.00035616,14]